bitfinex-derivatives/quotes_SOLF0:USTF0_20250820
["timestamp","ask_amount","ask_price","bid_price","bid_amount"]
[1755683752251,5.5246,181.02,180.99,5.5254]
[1755683752451,2.43904013,181.08,180.94,8.6282407]
[1755683752452,2.43904013,181.08,180.98,5.5256]
[1755683752853,2.43904013,181.05,180.93,6.18920057]
[1755683753054,2.43904013,181.05,180.96,5.5263]
[1755683753257,2.43904013,181.05,180.92,8.6282407]
[1755683753950,2.43904013,181.05,180.92,6.18920057]
[1755683755059,5.526,180.98,180.94,5.5268]
[1755683755758,5.526,180.98,180.95,5.5266]
[1755683756059,2.43904013,181.05,180.92,6.18920057]
[1755683756259,2.43904013,181.05,180.96,5.5262]
[1755683756559,5.5252,181.0,180.96,5.5262]
[1755683757058,5.5252,181.0,180.97,5.5261]
[1755683757663,5.5248,181.02,180.98,5.5257]
[1755683757960,5.5248,181.02,180.94,8.6282407]
[1755683758158,5.5248,181.02,180.99,5.5254]
[1755683758762,5.5248,181.02,180.98,5.5256]
[1755683759061,2.43904013,181.08,180.94,8.6282407]
[1755683759256,2.5517651,181.07,180.96,5.5262]
[1755683759659,5.5254,181.0,180.96,5.5262]
[1755683759859,2.43904013,181.06,180.95,5.5266]
[1755683760356,5.5256,180.99,180.92,8.6282407]
[1755683760568,2.43904013,181.06,180.92,8.6282407]
[1755683760768,5.5253,181.0,180.92,8.6282407]
[1755683761171,5.5253,181.0,180.96,5.5262]
[1755683762271,5.5253,181.0,180.97,5.5261]
[1755683762468,5.525,181.01,180.97,5.5261]
[1755683762869,5.5252,181.0,180.97,5.5261]
[1755683763365,2.43904013,181.06,180.93,6.18920057]
[1755683763570,2.43904013,181.09,180.95,2.43904013]
[1755683763766,2.55278173,181.08,180.95,2.43904013]
[1755683763970,5.5248,181.02,180.98,5.5256]
[1755683764172,2.43904013,181.09,180.98,5.5256]
[1755683764370,2.55289443,181.08,180.95,2.43904013]
[1755683764570,5.5245,181.03,180.95,2.43904013]
[1755683764875,2.43904013,181.09,180.95,2.43904013]
[1755683765064,5.5246,181.02,180.95,2.43904013]
[1755683765374,5.5246,181.02,180.95,8.6282407]
[1755683765974,5.5246,181.02,180.99,5.5253]
[1755683767273,5.5246,181.02,180.98,5.5256]
[1755683767679,5.5246,181.02,180.95,8.6282407]
[1755683768373,5.5246,181.02,180.96,6.18920057]
[1755683768881,5.5243,181.03,180.96,6.18920057]
[1755683769075,371.28,181.11,180.98,8.6282407]
[1755683769276,371.28,181.11,180.99,6.18920057]
[1755683769669,5.5235,181.06,180.99,6.18920057]
[1755683770074,5.5235,181.06,181.02,5.5244]
[1755683770282,5.5236,181.05,181.02,5.5244]
[1755683770881,5.524,181.04,181.01,5.5248]
[1755683771081,5.524,181.04,180.98,6.18920057]
[1755683771876,371.28,181.11,180.97,6.18920057]
[1755683771877,2.43904013,181.09,180.97,6.18920057]
[1755683772078,2.55154734,181.08,180.96,6.18920057]
[1755683772482,2.55154734,181.08,180.97,5.526]
[1755683773280,2.43904013,181.06,180.95,6.18920057]
[1755683773482,2.43904013,181.03,180.93,6.18920057]
[1755683773682,5.5261,180.97,180.94,5.5268]
[1755683774082,2.43904013,181.03,180.93,6.18920057]
[1755683774285,2.43904013,181.03,180.94,6.18920057]
[1755683774677,5.5257,180.99,180.95,5.5267]
[1755683775083,2.43904013,181.03,180.95,5.5267]
[1755683775281,5.5261,180.98,180.94,5.5269]
[1755683776185,5.5263,180.97,180.94,5.527]
[1755683777582,5.5263,180.97,180.93,11.71650057]
[1755683777788,2.43904013,181.03,180.92,6.18920057]
[1755683778182,2.43904013,181.03,180.91,6.18920057]
[1755683778384,5.5269,180.95,180.91,6.18920057]
[1755683778584,13.48764013,181.03,180.9,6.18920057]
[1755683779178,2.43904013,181.0,180.9,6.18920057]
[1755683779588,5.5272,180.94,180.9,11.71740057]
[1755683779786,2.43904013,181.0,180.9,6.18920057]
[1755683780384,5.5268,180.95,180.91,5.5278]
[1755683780989,5.5268,180.95,180.92,5.5276]
[1755683783184,5.5268,180.95,180.91,5.5278]
[1755683783489,5.527,180.94,180.91,5.5278]
[1755683783690,5.527,180.94,180.9,5.528]
[1755683784294,5.5273,180.93,180.9,5.528]
[1755683784590,2.43904013,181.0,180.9,5.528]
[1755683784990,5.527,180.94,180.9,5.528]
[1755683785390,2.43904013,181.0,180.9,5.528]
[1755683786093,5.5272,180.94,180.9,5.528]
[1755683787594,2.43904013,181.0,180.9,5.528]
[1755683788193,5.5272,180.94,180.9,5.528]
[1755683788593,2.43904013,181.0,180.89,5.5284]
[1755683789393,5.5275,180.93,180.89,5.5284]
[1755683791993,5.5271,180.94,180.9,5.5282]
[1755683792200,2.43904013,181.0,180.87,6.18920057]
[1755683792701,5.5263,180.97,180.89,8.6282407]
[1755683792897,13.48764013,181.03,180.89,8.6282407]
[1755683793204,13.48764013,181.03,180.89,2.43904013]
[1755683793403,13.48764013,181.03,180.91,5.5278]
[1755683794105,2.43904013,181.0,180.9,5.5281]
[1755683794302,2.43904013,181.0,180.87,6.18920057]
[1755683794603,5.5275,180.93,180.89,5.5283]
[1755683795104,2.43904013,181.0,180.87,6.18920057]
[1755683795401,5.5278,180.92,180.88,5.5287]
[1755683797304,5.5279,180.91,180.88,5.5287]
[1755683797503,2.43904013,180.97,180.84,8.6282407]
[1755683797807,2.43904013,180.97,180.83,6.18920057]
[1755683798104,2.43904013,180.97,180.85,5.5297]
[1755683798400,5.5288,180.89,180.85,5.5297]
[1755683800002,5.5283,180.9,180.86,5.5294]
[1755683800210,2.43904013,180.97,180.84,2.43904013]
[1755683800607,5.5278,180.92,180.88,5.5286]
[1755683802105,2.43904013,181.0,180.84,8.6282407]
[1755683802305,2.43904013,181.0,180.85,6.18920057]
[1755683803006,5.5275,180.93,180.89,5.5283]
[1755683805113,5.5275,180.93,180.9,5.5282]
[1755683805308,5.527,180.95,180.87,2.43904013]
[1755683805814,5.527,180.95,180.91,5.5277]
[1755683806106,5.527,180.95,180.87,2.43904013]
[1755683806504,5.527,180.94,180.87,2.43904013]
[1755683806704,2.43904013,181.0,180.87,2.43904013]
[1755683807314,5.5274,180.93,180.89,5.5284]
[1755683808109,5.5271,180.94,180.9,5.5282]
[1755683808705,509.65904013,181.04,180.9,2.43904013]
[1755683809217,509.65904013,181.04,180.93,5.5271]
[1755683810311,509.65904013,181.04,180.94,5.5269]
[1755683810509,509.65904013,181.04,180.9,2.43904013]
[1755683811616,5.5261,180.98,180.93,5.5271]
[1755683812515,5.5261,180.97,180.93,5.5271]
[1755683812817,509.65904013,181.04,180.94,5.527]
[1755683813211,509.65904013,181.04,180.9,8.6282407]
[1755683813212,507.22,181.04,180.9,8.6282407]
[1755683813513,5.5251,181.01,180.96,5.5262]
[1755683814815,5.5247,181.02,180.93,2.43904013]
[1755683815019,507.22,181.04,180.93,2.43904013]
[1755683815218,507.22,181.04,180.93,8.6282407]
[1755683815830,5.5249,181.01,180.96,5.5263]
[1755683816114,507.22,181.04,180.9,8.6282407]
[1755683816115,2.43904013,181.03,180.9,8.6282407]
[1755683816320,2.43904013,181.03,180.91,6.18920057]
[1755683816525,2.43904013,181.03,180.9,6.18920057]
[1755683816730,2.43904013,181.0,180.89,6.18920057]
[1755683816931,2.43904013,181.0,180.88,6.18920057]
[1755683817428,5.5272,180.94,180.89,5.5283]
[1755683817627,2.43904013,181.0,180.89,5.5283]
[1755683818027,5.5273,180.94,180.89,5.5283]
[1755683818633,5.5273,180.93,180.89,5.5283]
[1755683819031,2.43904013,181.0,180.9,5.5282]
[1755683819737,5.5268,180.95,180.9,5.5282]
[1755683820534,373.85904013,181.04,180.9,2.43904013]
[1755683820734,135.76,181.03,180.9,8.6282407]
[1755683821129,5.5263,180.97,180.9,8.6282407]
[1755683821326,5.5263,180.97,180.91,6.18920057]
[1755683822438,5.5263,180.97,180.93,5.5272]
[1755683823837,5.5259,180.98,180.93,5.5272]
[1755683824038,135.76,181.03,180.94,5.527]
[1755683824238,135.76,181.03,180.91,6.18920057]
[1755683825241,5.5258,180.99,180.93,5.5271]
[1755683825433,5.5258,180.99,180.91,6.18920057]
[1755683825634,5.5258,180.99,180.94,5.5269]
[1755683825834,5.5258,180.98,180.94,5.5269]
[1755683826140,135.76,181.03,180.94,5.5269]
[1755683826942,371.42,181.04,180.93,2.43904013]
[1755683827241,507.2,181.04,180.93,2.43904013]
[1755683827442,5.5249,181.01,180.96,5.5262]
[1755683828939,138.21904013,181.04,180.92,6.18920057]
[1755683829142,138.21904013,181.04,180.91,6.18920057]
[1755683829543,5.526,180.98,180.93,5.5271]
[1755683830243,5.5256,180.99,180.94,5.5268]
[1755683830441,5.5256,180.99,180.91,6.18920057]
[1755683831342,5.5258,180.98,180.93,5.5272]
[1755683832838,5.5261,180.97,180.93,5.5272]
[1755683834347,5.5264,180.96,180.92,5.5276]
[1755683835444,5.5267,180.95,180.91,5.5278]
[1755683838644,5.5265,180.96,180.92,5.5276]
[1755683838952,2.43904013,181.01,180.9,6.18920057]
[1755683839746,138.21904013,181.04,180.9,8.6282407]
[1755683840047,138.21904013,181.04,180.91,6.18920057]
[1755683840850,5.5254,181.0,180.95,5.5265]
[1755683841446,5.5255,180.99,180.95,5.5265]
[1755683842147,135.78,181.04,180.93,2.43904013]
[1755683842849,5.5251,181.01,180.97,5.526]
[1755683843652,5.5247,181.02,180.98,5.5257]
[1755683844340,5.524,181.04,180.93,2.43904013]
[1755683844552,371.34,181.07,180.96,8.6282407]
[1755683845552,5.5242,181.04,180.99,5.5253]
[1755683845748,371.34,181.07,180.99,5.5253]
[1755683846145,5.5238,181.05,180.99,5.5253]
[1755683846352,371.34,181.07,180.99,5.5253]
[1755683846749,5.5242,181.04,180.99,5.5253]
[1755683848154,5.5243,181.03,180.99,5.5253]
[1755683848550,5.5243,181.03,180.98,5.5256]
[1755683850854,5.5243,181.03,180.99,5.5254]
[1755683851357,5.5241,181.04,180.96,2.43904013]
[1755683851558,5.5241,181.04,181.0,5.5251]
[1755683851853,371.34,181.07,181.0,5.5251]
[1755683852053,371.34,181.07,180.99,2.43904013]
[1755683852247,135.54,181.09,180.99,2.43904013]
[1755683852554,5.5233,181.06,181.02,5.5243]
[1755683853256,5.5231,181.07,181.03,5.5242]
[1755683854559,5.5228,181.08,181.03,5.5242]
[1755683857354,5.5228,181.08,181.04,5.5239]
[1755683858356,5.5231,181.07,181.03,5.5242]
[1755683858762,5.5231,181.07,180.99,2.43904013]
[1755683859661,5.5231,181.07,181.03,5.5241]
[1755683860465,135.54,181.09,180.99,8.6282407]
[1755683861262,5.5228,181.08,181.04,5.5237]
[1755683862763,141.0625,181.09,181.05,5.5236]
[1755683865758,5.5228,181.08,181.04,5.5238]
[1755683868668,5.5231,181.07,181.03,5.5241]
[1755683870266,5.5231,181.07,181.04,5.5239]
[1755683872065,5.5231,181.07,181.03,5.5241]
[1755683872271,135.5,181.11,180.97,2.43904013]
[1755683872665,5.5238,181.05,181.01,5.5247]
[1755683873669,135.5,181.11,181.0,2.43904013]
[1755683874168,5.5232,181.07,181.03,5.5242]
[1755683879476,135.5,181.11,181.0,2.43904013]
[1755683879670,135.5,181.11,180.97,2.43904013]
[1755683880272,5.5235,181.06,181.02,5.5244]
[1755683881369,135.5,181.11,181.02,5.5244]
[1755683881370,5.5237,181.05,181.02,5.5244]
[1755683881570,135.5,181.11,180.97,2.43904013]
[1755683881973,5.5241,181.04,180.97,2.43904013]
[1755683882674,5.5241,181.04,181.01,5.5247]
[1755683882875,5.5241,181.04,180.97,2.43904013]
[1755683883172,5.5241,181.04,181.0,5.525]
[1755683885076,5.5243,181.03,180.96,8.6282407]
[1755683885265,2.43904013,181.09,180.96,8.6282407]
[1755683885673,2.43904013,181.09,181.0,5.5251]
[1755683885874,2.43904013,181.09,180.96,8.6282407]
[1755683886080,135.5,181.11,180.99,2.43904013]
[1755683886872,5.5232,181.07,180.99,2.43904013]
[1755683887274,135.5,181.11,180.99,8.6282407]
[1755683887472,135.5,181.11,181.02,5.5243]
[1755683887985,5.5234,181.06,181.02,5.5243]
[1755683889772,5.5231,181.07,181.03,5.5242]
[1755683890078,135.5,181.11,181.02,5.5245]
[1755683891476,5.5232,181.07,181.03,5.5242]
[1755683891782,135.5,181.11,181.03,5.5242]
[1755683891982,135.5,181.11,180.99,6.18920057]
[1755683892570,5.5233,181.07,180.99,6.18920057]
[1755683892982,135.5,181.11,180.99,6.18920057]
[1755683893780,5.5234,181.06,181.02,5.5244]
[1755683895586,135.5,181.11,180.99,6.18920057]
[1755683895782,2.54828221,181.1,180.98,8.6282407]
[1755683896774,2.43904013,181.09,180.98,6.18920057]
[1755683897473,2.43904013,181.09,181.0,5.5251]
[1755683898284,5.5243,181.03,181.0,5.5251]
[1755683901785,135.5,181.11,181.0,5.5251]
[1755683901990,5.524,181.04,181.0,5.5251]
[1755683906691,5.5238,181.05,181.01,5.5248]
[1755683906999,135.44,181.1,180.98,2.43904013]
[1755683907193,5.5234,181.06,181.02,5.5244]
[1755683907498,5.5234,181.06,180.99,6.18920057]
[1755683908293,5.5234,181.06,181.02,1.56202489]
[1755683909199,5.5231,181.07,181.03,5.5242]
[1755683910497,16.5636,181.14,181.02,2.44066933]
[1755683910702,2.54696188,181.13,181.02,2.44066933]
[1755683911004,2.54696188,181.13,181.01,6.18920057]
[1755683911005,135.42,181.14,181.05,2.44066933]
[1755683911804,5.5224,181.1,181.06,5.5232]
[1755683912403,5.5224,181.09,181.06,5.5232]
[1755683912598,135.42,181.14,181.06,5.5232]
[1755683913401,5.5222,181.1,181.06,5.5232]
[1755683914305,5.5219,181.11,181.07,5.5229]
[1755683915005,5.5221,181.1,181.06,5.5232]
[1755683915906,5.5225,181.09,181.05,5.5235]
[1755683919402,5.5222,181.1,181.06,5.5233]
[1755683924911,5.5222,181.1,181.07,5.523]
[1755683925412,5.5222,181.1,181.07,5.49972062]
[1755683926515,5.5222,181.1,181.06,5.5232]
[1755683926811,135.42,181.14,181.02,2.44066933]
[1755683928016,5.5229,181.08,181.04,5.5238]
[1755683928206,2.44066933,181.12,180.99,6.18920057]
[1755683928414,2.44066933,181.09,180.98,6.18920057]
[1755683928711,5.5239,181.05,180.97,6.18920057]
[1755683928911,2.44066933,181.09,180.97,6.18920057]
[1755683929411,5.5242,181.04,181.0,5.525]
[1755683931413,2.44066933,181.09,180.96,6.18920057]
[1755683931609,2.44066933,181.06,180.96,6.18920057]
[1755683932216,5.5247,181.02,180.95,6.18920057]
[1755683932715,5.5247,181.02,180.97,5.526]
[1755683932914,5.5247,181.02,180.95,6.18920057]
[1755683933918,5.5247,181.02,180.98,5.5256]
[1755683934418,5.5243,181.03,180.98,5.5256]
[1755683936022,5.5246,181.02,180.98,5.5256]
[1755683936618,5.5243,181.03,180.99,5.5252]
[1755683936923,2.44066933,181.1,180.96,6.18920057]
[1755683937314,5.5237,181.05,181.0,5.5251]
[1755683937519,5.5237,181.05,180.96,6.18920057]
[1755683937721,2.44066933,181.1,180.95,6.18920057]
[1755683938622,5.5244,181.03,180.99,5.5252]
[1755683938824,2.44066933,181.1,180.99,5.5252]
[1755683939025,5.5241,181.04,180.98,5.5257]
[1755683939419,2.44066933,181.1,180.98,5.5257]
[1755683940218,2.44066933,181.1,180.95,6.18920057]
[1755683940422,2.44066933,181.1,180.96,6.18920057]
[1755683940826,5.5237,181.05,180.96,6.18920057]
[1755683942024,5.5241,181.04,180.98,5.5256]
[1755683942419,5.5243,181.03,180.97,5.5259]
[1755683942621,2.44066933,181.07,180.94,8.6298699]
[1755683943122,5.5249,181.01,180.96,5.5261]
[1755683944527,5.5247,181.02,180.96,5.5261]
[1755683945829,5.5249,181.01,180.96,5.5261]
[1755683946226,2.44066933,181.07,180.93,6.18920057]
[1755683946425,5.5258,180.99,180.91,8.6298699]
[1755683946622,5.5258,180.99,180.93,5.5274]
[1755683946823,2.44066933,181.04,180.91,2.44066933]
[1755683947019,5.5264,180.97,180.91,2.44066933]
[1755683947234,2.44066933,181.04,180.9,6.18920057]
[1755683947527,5.5257,181.0,180.91,2.44066933]
[1755683947728,2.44066933,181.04,180.91,2.44066933]
[1755683948629,2.44066933,181.04,180.93,5.5275]
[1755683949026,2.44066933,181.04,180.91,2.44066933]
[1755683949225,5.5261,180.98,180.92,5.5277]
[1755683952423,5.5259,180.99,180.91,2.44066933]
[1755683953729,5.5259,180.99,180.94,5.5272]
[1755683955627,5.5261,180.98,180.93,5.5274]
[1755683956027,2.44066933,181.04,180.92,5.5277]
[1755683956230,5.5263,180.97,180.92,5.5277]
[1755683956831,5.5261,180.98,180.92,5.5277]
[1755683957334,2.44066933,181.01,180.87,3.40195546]
[1755683958427,5.5271,180.95,180.89,5.5286]
[1755683958633,2.44066933,181.01,180.89,5.5286]
[1755683959633,5.5275,180.94,180.89,5.5286]
[1755683959828,2.44066933,181.01,180.87,3.40195546]
[1755683960032,2.44066933,181.01,180.88,5.529]
[1755683960629,5.5279,180.93,180.88,5.529]
[1755683961134,13.49146933,181.01,180.87,7.97006933]
[1755683961330,13.49146933,181.01,180.87,2.44066933]
[1755683961728,13.49146933,181.01,180.89,5.5286]
[1755683962234,5.5274,180.94,180.89,5.5286]
[1755683962934,5.5276,180.93,180.88,5.529]
[1755683963137,11.051,181.0,180.87,2.44066933]
[1755683963731,5.528,180.92,180.87,7.96996933]
[1755683965231,5.5277,180.93,180.87,7.96996933]
[1755683965933,5.5277,180.93,180.88,5.529]
[1755683967336,5.5279,180.92,180.87,7.96996933]
[1755683977552,5.5279,180.92,180.88,5.5291]
[1755683978140,137.76066933,180.98,180.88,5.529]
[1755683978751,5.5281,180.92,180.88,5.529]
[1755683979447,5.5282,180.91,180.87,5.5293]
[1755683983449,5.5282,180.91,180.88,5.5291]
[1755683983855,5.5282,180.91,180.87,5.5293]
[1755683984654,5.5285,180.9,180.88,1.56447254]
[1755683986355,1.56447254,180.96,180.88,1.56447254]
[1755683987963,5.528,180.92,180.88,7.09357254]
[1755683996062,135.32,180.98,180.88,7.09357254]
[1755683996264,1.56447254,180.96,180.89,5.5288]
[1755683996562,1.56447254,180.96,180.88,1.56447254]
[1755683996773,5.5275,180.94,180.9,7.09277254]
[1755683997157,5.5269,180.96,180.92,1.56447254]
[1755683997861,5.527,180.95,180.92,1.56447254]
[1755683998952,5.527,180.95,180.9,5.5284]
[1755683999160,5.527,180.95,180.91,1.56447254]
[1755683999356,5.5274,180.94,180.91,1.56447254]
[1755684000357,1.56447254,181.0,180.93,1.56447254]
[1755684000551,3.84843977,180.99,180.93,1.56447254]
[1755684000752,1.56447254,181.02,180.88,8.95892508]
[1755684000952,1.56447254,181.0,180.92,1.56447254]
[1755684001152,1.56447254,180.98,180.9,1.56447254]
[1755684001556,1.56447254,181.0,180.92,1.56447254]
[1755684001758,3.84880327,180.99,180.92,1.56447254]
[1755684002059,1.56447254,181.0,180.88,8.95892508]
[1755684002060,1.56447254,181.02,180.94,1.56447254]
[1755684002258,1.56447254,181.0,180.93,1.56447254]
[1755684002857,1.56447254,181.01,180.93,1.56447254]
[1755684003056,5.5262,180.98,180.93,1.56447254]
[1755684003265,1.56447254,181.01,180.95,1.56447254]
[1755684003454,1.56447254,181.0,180.93,1.56447254]
[1755684004065,5.5266,180.97,180.93,1.56447254]
[1755684004262,1.56447254,181.0,180.93,1.56447254]
[1755684005056,1.56447254,181.06,180.99,1.56447254]
[1755684005466,5.5252,181.01,180.99,1.56447254]
[1755684005666,1.56447254,181.06,180.99,1.56447254]
[1755684005869,1.56447254,181.04,180.95,1.56447254]
[1755684006064,1.56447254,181.0,180.93,1.56447254]
[1755684006367,1.56447254,181.04,180.97,1.56447254]
[1755684006562,12.61187254,181.06,180.99,1.56447254]
[1755684007066,1.56447254,181.02,180.94,1.56447254]
[1755684007561,5.5264,180.97,180.94,1.56447254]
[1755684008967,5.5261,180.98,180.94,1.56447254]
[1755684010669,5.5258,180.99,180.96,1.56447254]
[1755684011462,5.5255,181.0,180.96,1.56447254]
[1755684013374,5.5258,180.99,180.96,1.56447254]
[1755684013675,1.56447254,181.03,180.96,1.56447254]
[1755684015172,5.5252,181.01,180.96,1.56447254]
[1755684017378,5.5249,181.02,180.96,7.09087254]
[1755684018878,1.56447254,181.05,180.98,1.56447254]
[1755684019181,136.80447254,181.07,180.98,1.56447254]
[1755684019479,136.80447254,181.07,180.99,5.5257]
[1755684019874,5.524,181.05,180.99,5.5257]
[1755684020179,5.524,181.05,181.0,5.5254]
[1755684020377,5.5243,181.04,181.0,5.5254]
[1755684020574,5.5243,181.04,180.99,5.5256]
[1755684020976,136.80447254,181.07,180.99,5.5256]
[1755684021277,1.56447254,181.05,180.99,5.5256]
[1755684022083,5.5244,181.04,180.99,5.5256]
[1755684023781,5.5244,181.04,181.0,5.5254]
[1755684024782,5.524,181.05,181.0,5.5254]
[1755684027185,5.5243,181.04,181.0,5.5254]
[1755684028082,5.5245,181.03,180.99,5.5256]
[1755684028285,1.56447254,181.01,180.93,1.56447254]
[1755684028493,1.56447254,181.03,180.95,1.56447254]
[1755684029088,5.5249,181.02,180.97,5.5262]
[1755684030193,1.56447254,181.01,180.95,1.56447254]
[1755684030586,1.56447254,181.01,180.94,1.56447254]
[1755684032198,1.56447254,181.01,180.95,5.5268]
[1755684032400,1.56447254,180.99,180.91,1.56447254]
[1755684032794,5.5266,180.97,180.91,1.56447254]
[1755684033601,5.5261,180.98,180.93,5.5274]
[1755684035504,1.56447254,180.99,180.93,5.5274]
[1755684035903,5.5262,180.98,180.93,5.5274]
[1755684037402,5.5264,180.97,180.93,5.5274]
[1755684037599,1.56447254,180.99,180.92,5.5278]
[1755684037906,5.5276,180.93,180.87,7.76875408]
[1755684038103,5.5276,180.93,180.88,5.5289]
[1755684038300,1.56447254,180.97,180.89,1.56447254]
[1755684038906,5.527,180.95,180.9,5.5285]
[1755684039102,5.527,180.95,180.9,7.09297254]
[1755684039900,1.56447254,180.99,180.92,1.56447254]
[1755684040204,1.56447254,181.01,180.94,1.56447254]
[1755684040602,5.5262,180.98,180.94,1.56447254]
[1755684041097,1.56447254,181.01,180.94,1.56447254]
[1755684042204,5.5259,180.99,180.95,5.5269]
[1755684042606,5.5259,180.99,180.91,8.64688178]
[1755684042806,5.5259,180.99,180.94,5.5272]
[1755684043007,5.5261,180.98,180.94,5.5272]
[1755684044909,5.5261,180.98,180.93,5.5275]
[1755684045109,5.5258,180.99,180.91,8.64688178]
[1755684045906,5.5258,180.99,180.94,5.527]
[1755684046509,5.5261,180.98,180.94,5.527]
[1755684046810,2.44260024,181.04,180.93,5.5275]
[1755684047108,2.44260024,181.04,180.94,5.5272]
[1755684048916,2.44260024,181.04,180.95,5.5269]
[1755684049216,2.44260024,181.07,180.94,8.64688178]
[1755684049515,5.5246,181.03,180.98,5.526]
[1755684050907,5.5244,181.04,180.99,5.5256]
[1755684051214,5.5244,181.04,180.97,2.44260024]
[1755684051606,5.5244,181.04,180.99,5.5256]
[1755684051804,5.5244,181.04,180.97,2.44260024]
[1755684052313,5.524,181.05,181.0,5.5252]
[1755684053215,135.14,181.08,180.97,2.44260024]
[1755684053216,5.5237,181.06,180.97,2.44260024]
[1755684053609,2.44260024,181.1,180.97,8.64688178]
[1755684053815,5.5234,181.07,181.02,5.5246]
[1755684054012,2.44260024,181.1,180.97,8.64688178]
[1755684054318,5.5235,181.07,181.02,5.5246]
[1755684055418,5.5231,181.08,181.03,5.5244]
[1755684056518,371.42,181.14,181.04,5.524]
[1755684056519,5.5229,181.09,181.04,5.524]
[1755684056707,8.60589471,181.18,181.03,2.44260024]
[1755684056910,2.54457524,181.17,181.03,2.44260024]
[1755684057311,2.44260024,181.18,181.03,2.44260024]
[1755684057511,5.5217,181.13,181.08,5.5229]
[1755684058622,5.5212,181.14,181.06,2.44260024]
[1755684059111,5.5212,181.14,181.09,5.5225]
[1755684060215,2.44260024,181.21,181.06,2.44260024]
[1755684060614,5.5206,181.16,181.12,5.5217]
[1755684060813,2.44260024,181.21,181.09,2.44260024]
[1755684061314,2.44260024,181.22,181.09,2.44260024]
[1755684062217,2.44260024,181.22,181.13,5.5214]
[1755684062417,2.44260024,181.22,181.09,2.44260024]
[1755684062714,2.44260024,181.31,181.18,2.44260024]
[1755684063117,5.5169,181.28,181.23,5.5184]
[1755684063916,2.44260024,181.34,181.21,2.44260024]
[1755684064314,371.18,181.35,181.24,2.44260024]
[1755684065017,5.5155,181.33,181.27,5.5169]
[1755684065920,2.44260024,181.34,181.21,2.44260024]
[1755684066419,5.5166,181.29,181.23,5.5184]
[1755684067220,5.517,181.28,181.22,5.5187]
[1755684067810,5.517,181.28,181.23,5.5183]
[1755684068815,5.517,181.28,181.22,5.5187]
[1755684071414,2.44260024,181.34,181.22,5.5187]
[1755684071614,2.44260024,181.31,181.18,2.44260024]
[1755684072723,2.44260024,181.28,181.15,2.44260024]
[1755684074224,2.44260024,181.28,181.19,5.5196]
[1755684078028,2.44260024,181.28,181.2,5.5193]
[1755684078729,5.518,181.25,181.2,5.5193]
[1755684079725,5.5181,181.24,181.2,5.5193]
[1755684079922,5.5181,181.24,181.19,5.5195]
[1755684081423,5.5181,181.24,181.2,5.5193]
[1755684083829,5.5181,181.24,181.18,5.5197]
[1755684084133,5.5181,181.24,181.15,2.44260024]
[1755684084931,5.5181,181.24,181.19,5.5196]
[1755684085430,2.44260024,181.25,181.12,2.44260024]
[1755684085831,5.5189,181.22,181.17,5.5201]
[1755684086228,5.5183,181.24,181.15,2.44260024]
[1755684086428,134.92,181.29,181.15,2.44260024]
[1755684088330,2.44260024,181.28,181.15,2.44260024]
[1755684088729,5.5189,181.22,181.15,2.44260024]
[1755684088925,2.44260024,181.25,181.09,62.0]
[1755684089132,2.44260024,181.25,181.11,2.44260024]
[1755684089330,2.44260024,181.25,181.16,5.5206]
[1755684090541,2.44260024,181.25,181.11,2.44260024]
[1755684091036,2.44260024,181.25,181.14,5.521]
[1755684091335,2.44260024,181.22,181.09,64.44260024]
[1755684091536,2.44260024,181.22,181.09,2.44260024]
[1755684091737,2.44260024,181.22,181.13,5.5213]
[1755684092132,2.44260024,181.22,181.12,5.5217]
[1755684096938,2.44260024,181.22,181.11,5.522]
[1755684097536,2.44260024,181.22,181.07,134.92]
[1755684097843,16.59,181.27,181.06,2.44260024]
[1755684097844,2.44260024,181.19,181.06,2.44260024]
[1755684098045,2.44260024,181.19,180.98,388.11608154]
[1755684098046,2.44260024,181.16,181.0,134.94]
[1755684098248,2.44260024,181.16,181.01,2.44260024]
[1755684098744,5.5225,181.1,181.06,5.5235]